[Event "Chess Festival Groningen 2023 | A"]
[Site "Groningen, Netherlands"]
[Date "2023.12.28"]
[Round "7.9"]
[White "Krasenkow, Michal"]
[Black "De Boer, Eelke"]
[Result "0-1"]
[TimeControl "90min/40moves + 30min + 30sec/move"]
[WhiteElo "2532"]
[BlackElo "2346"]

1. Nf3 {[%clk 01:30:57]} {[%emt 00:00:03]} d5 {[%clk 01:30:32]} {[%emt
00:00:28]} 2. d4 {[%clk 01:31:21]} {[%emt 00:00:06]} Nf6 {[%clk 01:30:56]}
{[%emt 00:00:06]} 3. c4 {[%clk 01:31:48]} {[%emt 00:00:04]} e6 {[%clk
01:31:17]} {[%emt 00:00:09]} 4. Nc3 {[%clk 01:32:07]} {[%emt 00:00:12]} c5
{[%clk 01:31:37]} {[%emt 00:00:09]} 5. cxd5 {[%clk 01:32:31]} {[%emt 00:00:07]}
Nxd5 {[%clk 01:32:01]} {[%emt 00:00:06]} 6. e4 {[%clk 01:32:57]} {[%emt
00:00:04]} Nxc3 {[%clk 01:32:21]} {[%emt 00:00:10]} 7. bxc3 {[%clk 01:33:25]}
{[%emt 00:00:02]} cxd4 {[%clk 01:32:43]} {[%emt 00:00:08]} 8. cxd4 {[%clk
01:33:52]} {[%emt 00:00:02]} Bb4+ {[%clk 01:33:05]} {[%emt 00:00:07]} 9. Bd2
{[%clk 01:34:19]} {[%emt 00:00:03]} Bxd2+ {[%clk 01:33:27]} {[%emt 00:00:08]}
10. Qxd2 {[%clk 01:34:46]} {[%emt 00:00:02]} O-O {[%clk 01:33:47]} {[%emt
00:00:10]} 11. Bc4 {[%clk 01:35:14]} {[%emt 00:00:02]} Nd7 {[%clk 01:34:00]}
{[%emt 00:00:17]} 12. O-O {[%clk 01:34:57]} {[%emt 00:00:48]} b6 {[%clk
01:34:22]} {[%emt 00:00:08]} 13. d5 {[%clk 01:34:27]} {[%emt 00:01:00]} Nc5
{[%clk 01:30:28]} {[%emt 00:04:23]} 14. Qf4 {[%clk 01:33:13]} {[%emt 00:01:45]}
Qf6 {[%clk 01:10:27]} {[%emt 00:20:30]} 15. Qxf6 {[%clk 01:32:39]} {[%emt
00:01:04]} gxf6 {[%clk 01:10:51]} {[%emt 00:00:06]} 16. Rfe1 {[%clk 01:32:51]}
{[%emt 00:00:18]} Ba6 {[%clk 01:10:58]} {[%emt 00:00:22]} 17. Bxa6 {[%clk
01:31:01]} {[%emt 00:02:20]} Nxa6 {[%clk 01:11:22]} {[%emt 00:00:06]} 18. Nd4
{[%clk 01:22:23]} {[%emt 00:09:09]} Rfd8 {[%clk 01:08:02]} {[%emt 00:03:50]} 19.
Rad1 {[%clk 01:16:08]} {[%emt 00:06:45]} Nc5 {[%clk 01:04:34]} {[%emt
00:03:58]} 20. Nc6 {[%clk 01:14:29]} {[%emt 00:02:09]} Rd7 {[%clk 01:02:35]}
{[%emt 00:02:28]} 21. Rd4 {[%clk 00:59:04]} {[%emt 00:15:56]} Rc8 {[%clk
00:37:56]} {[%emt 00:25:09]} 22. Kf1 {[%clk 00:57:32]} {[%emt 00:02:02]} Kf8
{[%clk 00:33:47]} {[%emt 00:04:38]} 23. Re3 {[%clk 00:57:08]} {[%emt 00:00:55]}
Rcc7 {[%clk 00:25:27]} {[%emt 00:08:51]} 24. Ke2 {[%clk 00:51:50]} {[%emt
00:05:48]} Rd6 {[%clk 00:24:58]} {[%emt 00:00:58]} 25. Rd1 {[%clk 00:21:10]}
{[%emt 00:31:10]} exd5 {[%clk 00:22:30]} {[%emt 00:02:58]} 26. exd5 {[%clk
00:21:34]} {[%emt 00:00:06]} Rcd7 {[%clk 00:22:56]} {[%emt 00:00:04]} 27. Rd4
{[%clk 00:19:01]} {[%emt 00:03:03]} a5 {[%clk 00:19:57]} {[%emt 00:03:29]} 28.
Rg4 {[%clk 00:19:06]} {[%emt 00:00:25]} Rb7 {[%clk 00:17:15]} {[%emt 00:03:12]}
29. Reg3 {[%clk 00:13:48]} {[%emt 00:05:48]} Ke8 {[%clk 00:17:43]} {[%emt
00:00:02]} 30. Rg8+ {[%clk 00:12:38]} {[%emt 00:01:41]} Kd7 {[%clk 00:18:11]}
{[%emt 00:00:02]} 31. R3g7 {[%clk 00:05:37]} {[%emt 00:07:30]} Rxd5 {[%clk
00:17:37]} {[%emt 00:01:05]} 32. Nd8 {[%clk 00:05:58]} {[%emt 00:00:09]} Re5+
{[%clk 00:14:37]} {[%emt 00:03:31]} 33. Kf3 {[%clk 00:05:42]} {[%emt 00:00:46]}
Rc7 {[%clk 00:14:33]} {[%emt 00:00:33]} 34. Nxf7 {[%clk 00:03:28]} {[%emt
00:02:44]} Re7 {[%clk 00:14:52]} {[%emt 00:00:11]} 35. Rd8+ {[%clk 00:01:52]}
{[%emt 00:02:06]} Kc6 {[%clk 00:15:12]} {[%emt 00:00:11]} 36. Rd6+ {[%clk
00:02:10]} {[%emt 00:00:12]} Kb5 {[%clk 00:13:51]} {[%emt 00:01:51]} 37. Rxf6
{[%clk 00:02:38]} {[%emt 00:00:01]} Ka6 {[%clk 00:10:32]} {[%emt 00:03:49]} 38.
Rxh7 {[%clk 00:02:11]} {[%emt 00:00:57]} Nd7 {[%clk 00:09:25]} {[%emt
00:01:37]} 39. Rf5 {[%clk 00:01:40]} {[%emt 00:01:02]} Nf8 {[%clk 00:08:12]}
{[%emt 00:01:43]} 40. Rh8 {[%clk 00:01:16]} {[%emt 00:00:53]} Ng6 {[%clk
00:07:05]} {[%emt 00:01:37]} 41. Rh7 {[%clk 00:29:30]} {[%emt 00:02:16]} Nf8
{[%clk 00:19:08]} {[%emt 00:18:26]} 42. Rh8 {[%clk 00:27:51]} {[%emt 00:02:09]}
Ne6 {[%clk 00:19:32]} {[%emt 00:00:06]} 43. Nd6 {[%clk 00:19:59]} {[%emt
00:08:23]} Nd4+ {[%clk 00:19:55]} {[%emt 00:00:06]} 44. Kf4 {[%clk 00:19:37]}
{[%emt 00:00:52]} Nxf5 {[%clk 00:20:15]} {[%emt 00:00:11]} 45. Ra8+ {[%clk
00:20:02]} {[%emt 00:00:05]} Ra7 {[%clk 00:20:40]} {[%emt 00:00:05]} 46. Rxa7+
{[%clk 00:20:28]} {[%emt 00:00:04]} Rxa7 {[%clk 00:20:57]} {[%emt 00:00:12]} 47.
Nxf5 {[%clk 00:14:01]} {[%emt 00:06:57]} Rd7 {[%clk 00:14:15]} {[%emt
00:07:12]} 48. g4 {[%clk 00:09:00]} {[%emt 00:05:32]} b5 {[%clk 00:12:46]}
{[%emt 00:01:59]} 49. h4 {[%clk 00:04:03]} {[%emt 00:05:27]} b4 {[%clk
00:12:45]} {[%emt 00:00:31]} 50. Ke3 {[%clk 00:03:31]} {[%emt 00:01:02]} a4
{[%clk 00:11:14]} {[%emt 00:02:01]} 51. Nd4 {[%clk 00:03:48]} {[%emt 00:00:13]}
Kb6 {[%clk 00:11:35]} {[%emt 00:00:08]} 52. h5 {[%clk 00:02:47]} {[%emt
00:01:31]} Kc5 {[%clk 00:11:00]} {[%emt 00:01:06]} 53. Nb3+ {[%clk 00:01:57]}
{[%emt 00:01:20]} axb3 {[%clk 00:10:47]} {[%emt 00:00:43]} 54. axb3 {[%clk
00:02:26]} {[%emt 00:00:01]} Kd5 {[%clk 00:09:24]} {[%emt 00:01:52]} 55. Kf4
{[%clk 00:00:45]} {[%emt 00:02:12]} Rf7+ {[%clk 00:08:49]} {[%emt 00:01:05]} 56.
Kg5 {[%clk 00:00:39]} {[%emt 00:00:36]} Rxf2 {[%clk 00:08:37]} {[%emt
00:00:42]} 57. h6 {[%clk 00:01:06]} {[%emt 00:00:03]} Ke5 {[%clk 00:08:35]}
{[%emt 00:00:31]} 0-1

[Event "Chess Festival Groningen 2023 | A"]
[Site "Groningen, Netherlands"]
[Date "2023.12.28"]
[Round "7.10"]
[White "Beerdsen, Thomas"]
[Black "Kollen, Zyon"]
[Result "1-0"]
[TimeControl "90min/40moves + 30min + 30sec/move"]
[WhiteElo "2511"]
[BlackElo "2318"]

1. e4 {[%clk 01:30:57]} {[%emt 00:00:02]} e6 {[%clk 01:30:52]} {[%emt
00:00:08]} 2. d4 {[%clk 01:31:22]} {[%emt 00:00:05]} d5 {[%clk 01:31:17]}
{[%emt 00:00:06]} 3. e5 {[%clk 01:31:46]} {[%emt 00:00:05]} c5 {[%clk
01:31:36]} {[%emt 00:00:13]} 4. c3 {[%clk 01:32:09]} {[%emt 00:00:06]} Qb6
{[%clk 01:32:00]} {[%emt 00:00:06]} 5. Nf3 {[%clk 01:32:24]} {[%emt 00:00:15]}
Nc6 {[%clk 01:32:22]} {[%emt 00:00:08]} 6. Bd3 {[%clk 01:32:32]} {[%emt
00:00:21]} cxd4 {[%clk 01:32:41]} {[%emt 00:00:12]} 7. O-O {[%clk 01:32:40]}
{[%emt 00:00:21]} Bd7 {[%clk 01:33:04]} {[%emt 00:00:07]} 8. Re1 {[%clk
01:32:49]} {[%emt 00:00:20]} Nh6 {[%clk 01:23:28]} {[%emt 00:10:07]} 9. Bxh6
{[%clk 01:26:57]} {[%emt 00:06:21]} Qxb2 {[%clk 00:56:00]} {[%emt 00:27:59]} 10.
Bc1 {[%clk 01:05:53]} {[%emt 00:21:31]} Qxa1 {[%clk 00:54:31]} {[%emt
00:02:01]} 11. Qb3 {[%clk 01:01:30]} {[%emt 00:04:52]} Na5 {[%clk 00:30:41]}
{[%emt 00:24:21]} 12. Qc2 {[%clk 01:01:45]} {[%emt 00:00:15]} Bc5 {[%clk
00:22:15]} {[%emt 00:08:57]} 13. Bd2 {[%clk 00:59:20]} {[%emt 00:02:54]} Rc8
{[%clk 00:19:12]} {[%emt 00:03:33]} 14. Rc1 {[%clk 00:53:42]} {[%emt 00:06:07]}
O-O {[%clk 00:08:36]} {[%emt 00:11:06]} 15. Na3 {[%clk 00:48:48]} {[%emt
00:05:24]} Qxc1+ {[%clk 00:08:45]} {[%emt 00:00:21]} 16. Bxc1 {[%clk 00:47:48]}
{[%emt 00:01:30]} dxc3 {[%clk 00:09:02]} {[%emt 00:00:13]} 17. Bxh7+ {[%clk
00:47:51]} {[%emt 00:00:27]} Kh8 {[%clk 00:09:28]} {[%emt 00:00:04]} 18. Ng5
{[%clk 00:44:50]} {[%emt 00:03:30]} f6 {[%clk 00:08:02]} {[%emt 00:01:57]} 19.
Bg8 {[%clk 00:43:43]} {[%emt 00:01:36]} Bxf2+ {[%clk 00:07:25]} {[%emt
00:01:08]} 20. Kh1 {[%clk 00:43:13]} {[%emt 00:01:00]} f5 {[%clk 00:07:21]}
{[%emt 00:00:34]} 21. Qxf2 {[%clk 00:43:32]} {[%emt 00:00:10]} Kxg8 {[%clk
00:07:24]} {[%emt 00:00:28]} 22. Qh4 {[%clk 00:43:56]} {[%emt 00:00:05]} Rfe8
{[%clk 00:07:20]} {[%emt 00:00:34]} 23. Nb5 {[%clk 00:42:48]} {[%emt 00:01:38]}
Nc4 {[%clk 00:04:42]} {[%emt 00:03:08]} 24. Qh7+ {[%clk 00:43:12]} {[%emt
00:00:06]} Kf8 {[%clk 00:05:09]} {[%emt 00:00:04]} 25. Qh8+ {[%clk 00:43:37]}
{[%emt 00:00:04]} Ke7 {[%clk 00:05:35]} {[%emt 00:00:04]} 26. Qxg7+ {[%clk
00:44:03]} {[%emt 00:00:04]} Kd8 {[%clk 00:05:59]} {[%emt 00:00:07]} 27. Nf7+
{[%clk 00:44:29]} {[%emt 00:00:03]} Ke7 {[%clk 00:06:23]} {[%emt 00:00:08]} 28.
Bg5# {[%clk 00:44:54]} {[%emt 00:00:05]} 1-0

[Event "Chess Festival Groningen 2023 | A"]
[Site "Groningen, Netherlands"]
[Date "2023.12.28"]
[Round "7.11"]
[White "Kovchan, Alexander"]
[Black "Kanyamarala, Tarun"]
[Result "1-0"]
[TimeControl "90min/40moves + 30min + 30sec/move"]
[WhiteElo "2491"]
[BlackElo "2305"]

1. e4 {[%clk 01:30:53]} {[%emt 00:00:05]} c5 {[%clk 01:30:45]} {[%emt
00:00:16]} 2. Nf3 {[%clk 01:31:10]} {[%emt 00:00:13]} Nc6 {[%clk 01:30:59]}
{[%emt 00:00:16]} 3. d4 {[%clk 01:31:22]} {[%emt 00:00:18]} cxd4 {[%clk
01:31:19]} {[%emt 00:00:09]} 4. Nxd4 {[%clk 01:31:43]} {[%emt 00:00:09]} e5
{[%clk 01:31:35]} {[%emt 00:00:15]} 5. Nb5 {[%clk 01:31:53]} {[%emt 00:00:20]}
d6 {[%clk 01:31:51]} {[%emt 00:00:14]} 6. c4 {[%clk 01:31:40]} {[%emt
00:00:42]} Be6 {[%clk 01:32:02]} {[%emt 00:00:18]} 7. Bd3 {[%clk 01:31:13]}
{[%emt 00:00:57]} Nf6 {[%clk 01:31:52]} {[%emt 00:00:41]} 8. O-O {[%clk
01:31:02]} {[%emt 00:00:41]} g6 {[%clk 01:31:53]} {[%emt 00:00:29]} 9. N1c3
{[%clk 01:26:33]} {[%emt 00:04:59]} a6 {[%clk 01:32:00]} {[%emt 00:00:23]} 10.
Na3 {[%clk 01:26:53]} {[%emt 00:00:10]} Bg7 {[%clk 01:32:12]} {[%emt 00:00:18]}
11. Nc2 {[%clk 01:25:14]} {[%emt 00:02:08]} O-O {[%clk 01:31:56]} {[%emt
00:00:47]} 12. Nd5 {[%clk 01:23:32]} {[%emt 00:02:11]} Bxd5 {[%clk 01:25:02]}
{[%emt 00:07:24]} 13. cxd5 {[%clk 01:23:41]} {[%emt 00:00:21]} Nd4 {[%clk
01:25:09]} {[%emt 00:00:23]} 14. Nxd4 {[%clk 01:23:33]} {[%emt 00:00:39]} exd4
{[%clk 01:25:28]} {[%emt 00:00:11]} 15. Bg5 {[%clk 01:22:48]} {[%emt 00:01:14]}
Qb6 {[%clk 01:19:33]} {[%emt 00:06:26]} 16. Bxf6 {[%clk 01:22:00]} {[%emt
00:01:19]} Bxf6 {[%clk 01:19:23]} {[%emt 00:00:40]} 17. Qd2 {[%clk 01:22:18]}
{[%emt 00:00:11]} Rac8 {[%clk 01:12:49]} {[%emt 00:07:04]} 18. g3 {[%clk
01:21:12]} {[%emt 00:01:36]} Rc5 {[%clk 01:08:56]} {[%emt 00:04:23]} 19. h4
{[%clk 01:17:27]} {[%emt 00:04:16]} Rfc8 {[%clk 01:05:22]} {[%emt 00:04:04]} 20.
Kg2 {[%clk 01:13:58]} {[%emt 00:03:59]} Qd8 {[%clk 01:02:49]} {[%emt 00:03:03]}
21. h5 {[%clk 01:09:39]} {[%emt 00:04:48]} R8c7 {[%clk 01:00:44]} {[%emt
00:02:36]} 22. Rh1 {[%clk 01:03:16]} {[%emt 00:06:52]} Qc8 {[%clk 00:51:07]}
{[%emt 00:10:07]} 23. Rad1 {[%clk 00:51:09]} {[%emt 00:12:38]} Qg4 {[%clk
00:44:53]} {[%emt 00:06:43]} 24. Rde1 {[%clk 00:47:20]} {[%emt 00:04:19]} Qc8
{[%clk 00:35:45]} {[%emt 00:09:38]} 25. hxg6 {[%clk 00:38:27]} {[%emt
00:09:23]} hxg6 {[%clk 00:35:55]} {[%emt 00:00:20]} 26. Qf4 {[%clk 00:38:14]}
{[%emt 00:00:43]} Qd8 {[%clk 00:31:56]} {[%emt 00:04:29]} 27. Qh6 {[%clk
00:26:41]} {[%emt 00:12:03]} Bg7 {[%clk 00:22:46]} {[%emt 00:09:41]} 28. Qd2
{[%clk 00:27:03]} {[%emt 00:00:08]} Rc8 {[%clk 00:18:01]} {[%emt 00:05:15]} 29.
f4 {[%clk 00:25:39]} {[%emt 00:01:53]} R8c7 {[%clk 00:15:02]} {[%emt 00:03:29]}
30. Kf3 {[%clk 00:24:43]} {[%emt 00:01:25]} Qc8 {[%clk 00:14:38]} {[%emt
00:00:55]} 31. g4 {[%clk 00:20:41]} {[%emt 00:04:32]} Qd7 {[%clk 00:07:40]}
{[%emt 00:07:28]} 32. g5 {[%clk 00:18:59]} {[%emt 00:02:12]} Qa4 {[%clk
00:06:51]} {[%emt 00:01:19]} 33. f5 {[%clk 00:17:58]} {[%emt 00:01:30]} Be5
{[%clk 00:04:04]} {[%emt 00:03:17]} 34. f6 {[%clk 00:18:22]} {[%emt 00:00:07]}
Qd7 {[%clk 00:03:35]} {[%emt 00:00:59]} 35. Qf2 {[%clk 00:15:50]} {[%emt
00:03:01]} Rc3 {[%clk 00:02:45]} {[%emt 00:01:21]} 36. bxc3 {[%clk 00:16:08]}
{[%emt 00:00:12]} Rxc3 {[%clk 00:03:10]} {[%emt 00:00:05]} 37. Rd1 {[%clk
00:15:14]} {[%emt 00:01:23]} Qb5 {[%clk 00:03:17]} {[%emt 00:00:23]} 38. Qe2
{[%clk 00:13:37]} {[%emt 00:02:07]} 1-0

[Event "Chess Festival Groningen 2023 | A"]
[Site "Groningen, Netherlands"]
[Date "2023.12.28"]
[Round "7.12"]
[White "Bulmaga, Irina"]
[Black "Aashman, Gupta"]
[Result "1-0"]
[TimeControl "90min/40moves + 30min + 30sec/move"]
[BlackFideId "45022500"]
[WhiteElo "2439"]
[BlackElo "2235"]

1. e4 {[%clk 01:30:56]} {[%emt 00:00:02]} e5 {[%clk 01:29:35]} {[%emt
00:01:26]} 2. Nf3 {[%clk 01:31:15]} {[%emt 00:00:10]} Nc6 {[%clk 01:29:56]}
{[%emt 00:00:08]} 3. Bc4 {[%clk 01:31:38]} {[%emt 00:00:08]} Nf6 {[%clk
01:29:16]} {[%emt 00:01:10]} 4. d3 {[%clk 01:31:58]} {[%emt 00:00:10]} Be7
{[%clk 01:29:40]} {[%emt 00:00:06]} 5. O-O {[%clk 01:32:14]} {[%emt 00:00:14]}
O-O {[%clk 01:29:57]} {[%emt 00:00:14]} 6. Re1 {[%clk 01:32:25]} {[%emt
00:00:19]} d6 {[%clk 01:28:57]} {[%emt 00:01:30]} 7. a4 {[%clk 01:32:47]}
{[%emt 00:00:09]} Na5 {[%clk 01:27:48]} {[%emt 00:01:39]} 8. Ba2 {[%clk
01:30:06]} {[%emt 00:03:11]} c5 {[%clk 01:27:58]} {[%emt 00:00:19]} 9. Na3
{[%clk 01:30:07]} {[%emt 00:00:30]} Be6 {[%clk 01:16:32]} {[%emt 00:11:56]} 10.
Bxe6 {[%clk 01:27:50]} {[%emt 00:02:47]} fxe6 {[%clk 01:16:48]} {[%emt
00:00:13]} 11. c3 {[%clk 01:28:06]} {[%emt 00:00:15]} Nc6 {[%clk 01:06:49]}
{[%emt 00:10:30]} 12. Bd2 {[%clk 01:27:39]} {[%emt 00:00:56]} Nh5 {[%clk
00:56:25]} {[%emt 00:10:54]} 13. b4 {[%clk 01:23:01]} {[%emt 00:05:08]} cxb4
{[%clk 00:44:39]} {[%emt 00:12:16]} 14. cxb4 {[%clk 01:20:53]} {[%emt
00:02:38]} Qe8 {[%clk 00:40:42]} {[%emt 00:04:27]} 15. b5 {[%clk 01:18:46]}
{[%emt 00:02:37]} Nd8 {[%clk 00:38:41]} {[%emt 00:02:32]} 16. Nc4 {[%clk
01:13:56]} {[%emt 00:05:19]} Qg6 {[%clk 00:36:47]} {[%emt 00:02:23]} 17. Be3
{[%clk 01:05:16]} {[%emt 00:09:10]} Nf4 {[%clk 00:32:06]} {[%emt 00:05:12]} 18.
Bxf4 {[%clk 01:04:15]} {[%emt 00:01:31]} Rxf4 {[%clk 00:32:06]} {[%emt
00:00:29]} 19. Rc1 {[%clk 01:03:27]} {[%emt 00:01:18]} Nf7 {[%clk 00:26:50]}
{[%emt 00:05:46]} 20. Rc2 {[%clk 00:58:39]} {[%emt 00:05:18]} Rf8 {[%clk
00:25:02]} {[%emt 00:02:18]} 21. Re3 {[%clk 00:50:31]} {[%emt 00:08:39]} Qh5
{[%clk 00:20:02]} {[%emt 00:05:29]} 22. Rd2 {[%clk 00:41:52]} {[%emt 00:09:09]}
Nh6 {[%clk 00:16:11]} {[%emt 00:04:20]} 23. h3 {[%clk 00:40:30]} {[%emt
00:01:52]} g5 {[%clk 00:14:04]} {[%emt 00:02:38]} 24. d4 {[%clk 00:33:15]}
{[%emt 00:07:46]} g4 {[%clk 00:11:11]} {[%emt 00:03:23]} 25. Nh2 {[%clk
00:32:57]} {[%emt 00:00:48]} exd4 {[%clk 00:09:15]} {[%emt 00:02:26]} 26. Rg3
{[%clk 00:27:29]} {[%emt 00:05:58]} e5 {[%clk 00:05:37]} {[%emt 00:04:09]} 27.
Nxg4 {[%clk 00:22:03]} {[%emt 00:05:56]} Nxg4 {[%clk 00:05:38]} {[%emt
00:00:29]} 28. Rxg4+ {[%clk 00:21:59]} {[%emt 00:00:33]} Rxg4 {[%clk 00:05:54]}
{[%emt 00:00:15]} 29. hxg4 {[%clk 00:22:04]} {[%emt 00:00:25]} Qf7 {[%clk
00:05:43]} {[%emt 00:00:41]} 30. Qe2 {[%clk 00:21:20]} {[%emt 00:01:14]} Qe6
{[%clk 00:04:15]} {[%emt 00:01:58]} 31. Rc2 {[%clk 00:18:29]} {[%emt 00:03:21]}
Kh8 {[%clk 00:02:51]} {[%emt 00:01:53]} 32. Na5 {[%clk 00:17:14]} {[%emt
00:01:46]} Qd7 {[%clk 00:01:43]} {[%emt 00:01:39]} 33. Nb3 {[%clk 00:15:31]}
{[%emt 00:02:12]} Rc8 {[%clk 00:01:31]} {[%emt 00:00:42]} 34. Rc4 {[%clk
00:13:54]} {[%emt 00:02:07]} Kg7 {[%clk 00:00:41]} {[%emt 00:01:21]} 35. Nd2
{[%clk 00:14:01]} {[%emt 00:00:23]} Bg5 {[%clk 00:00:33]} {[%emt 00:00:38]} 36.
Nf3 {[%clk 00:13:31]} {[%emt 00:00:59]} Qxg4 {[%clk 00:00:36]} {[%emt
00:00:28]} 37. Qc2 {[%clk 00:13:06]} {[%emt 00:00:55]} Rxc4 {[%clk 00:00:32]}
{[%emt 00:00:33]} 38. Qxc4 {[%clk 00:13:33]} {[%emt 00:00:03]} Bd8 {[%clk
00:00:32]} {[%emt 00:00:31]} 39. Qd5 {[%clk 00:13:06]} {[%emt 00:00:57]} Qg6
{[%clk 00:00:40]} {[%emt 00:00:22]} 40. Qxb7+ {[%clk 00:12:42]} {[%emt
00:00:54]} Qf7 {[%clk 00:00:45]} {[%emt 00:00:23]} 41. Qc8 {[%clk 00:11:32]}
{[%emt 00:01:41]} Qc7 {[%clk 00:24:10]} {[%emt 00:07:05]} 42. Qxc7+ {[%clk
00:37:00]} {[%emt 00:05:03]} Bxc7 {[%clk 00:24:38]} {[%emt 00:00:02]} 43. Kf1
{[%clk 00:36:39]} {[%emt 00:00:50]} Kf6 {[%clk 00:12:07]} {[%emt 00:13:02]} 44.
Ke2 {[%clk 00:37:01]} {[%emt 00:00:07]} Ke6 {[%clk 00:10:21]} {[%emt 00:02:16]}
45. Kd3 {[%clk 00:37:09]} {[%emt 00:00:22]} h6 {[%clk 00:03:09]} {[%emt
00:07:42]} 46. Kc4 {[%clk 00:36:37]} {[%emt 00:01:02]} Ba5 {[%clk 00:03:14]}
{[%emt 00:00:26]} 47. Ng1 {[%clk 00:30:32]} {[%emt 00:06:34]} Be1 {[%clk
00:03:18]} {[%emt 00:00:26]} 48. f3 {[%clk 00:30:48]} {[%emt 00:00:14]} Ba5
{[%clk 00:02:16]} {[%emt 00:01:33]} 49. Ne2 {[%clk 00:30:58]} {[%emt 00:00:19]}
Bd2 {[%clk 00:02:29]} {[%emt 00:00:17]} 50. Kd3 {[%clk 00:30:55]} {[%emt
00:00:33]} Be1 {[%clk 00:00:37]} {[%emt 00:02:23]} 51. Kc4 {[%clk 00:27:36]}
{[%emt 00:03:50]} Bd2 {[%clk 00:00:55]} {[%emt 00:00:12]} 52. Ng3 {[%clk
00:27:45]} {[%emt 00:00:20]} Be1 {[%clk 00:00:35]} {[%emt 00:00:51]} 53. Nf5
{[%clk 00:28:03]} {[%emt 00:00:11]} d5+ {[%clk 00:00:43]} {[%emt 00:00:22]} 54.
Kd3 {[%clk 00:28:25]} {[%emt 00:00:07]} dxe4+ {[%clk 00:01:04]} {[%emt
00:00:10]} 55. fxe4 {[%clk 00:27:15]} {[%emt 00:01:39]} h5 {[%clk 00:01:12]}
{[%emt 00:00:22]} 56. Ng7+ {[%clk 00:27:37]} {[%emt 00:00:08]} Kf7 {[%clk
00:00:51]} {[%emt 00:00:52]} 57. Nxh5 {[%clk 00:27:47]} {[%emt 00:00:20]} Kg6
{[%clk 00:01:07]} {[%emt 00:00:14]} 58. Ng3 {[%clk 00:27:55]} {[%emt 00:00:22]}
Ba5 {[%clk 00:00:34]} {[%emt 00:01:04]} 59. Nf5 {[%clk 00:28:11]} {[%emt
00:00:14]} Kf6 {[%clk 00:00:52]} {[%emt 00:00:12]} 60. Nd6 {[%clk 00:28:05]}
{[%emt 00:00:35]} Ke6 {[%clk 00:01:14]} {[%emt 00:00:08]} 61. Nc8 {[%clk
00:28:07]} {[%emt 00:00:27]} Kd7 {[%clk 00:01:03]} {[%emt 00:00:42]} 62. Nxa7
{[%clk 00:28:24]} {[%emt 00:00:14]} 1-0

[Event "Chess Festival Groningen 2023 | A"]
[Site "Groningen, Netherlands"]
[Date "2023.12.28"]
[Round "7.13"]
[White "De Winter, Arthur"]
[Black "Keuning, Selwin"]
[Result "1-0"]
[TimeControl "90min/40moves + 30min + 30sec/move"]
[WhiteElo "2405"]
[BlackElo "2139"]

1. e4 {[%clk 01:30:59]} {[%emt 01:24:15]} c5 {[%clk 01:30:55]} {[%emt
00:00:06]} 2. Nf3 {[%clk 01:31:20]} {[%emt 00:00:09]} Nc6 {[%clk 01:31:20]}
{[%emt 00:00:05]} 3. Bb5 {[%clk 01:31:13]} {[%emt 00:00:37]} g6 {[%clk
01:31:40]} {[%emt 00:00:10]} 4. O-O {[%clk 01:31:35]} {[%emt 00:00:07]} Bg7
{[%clk 01:32:07]} {[%emt 00:00:03]} 5. d3 {[%clk 01:32:01]} {[%emt 00:00:04]}
e5 {[%clk 01:30:51]} {[%emt 00:01:47]} 6. a3 {[%clk 01:32:29]} {[%emt
00:00:03]} Nge7 {[%clk 01:28:59]} {[%emt 00:02:21]} 7. b4 {[%clk 01:32:55]}
{[%emt 00:00:04]} Nd4 {[%clk 01:18:06]} {[%emt 00:11:23]} 8. Nxd4 {[%clk
01:28:11]} {[%emt 00:05:14]} cxd4 {[%clk 01:18:31]} {[%emt 00:00:04]} 9. f4
{[%clk 01:28:36]} {[%emt 00:00:05]} exf4 {[%clk 01:09:45]} {[%emt 00:09:21]} 10.
Bxf4 {[%clk 01:29:00]} {[%emt 00:00:01]} Qb6 {[%clk 00:53:49]} {[%emt
00:16:27]} 11. Bc4 {[%clk 01:25:32]} {[%emt 00:03:57]} O-O {[%clk 00:51:06]}
{[%emt 00:03:13]} 12. Nd2 {[%clk 01:25:51]} {[%emt 00:00:11]} d6 {[%clk
00:44:26]} {[%emt 00:07:10]} 13. Bd5 {[%clk 01:05:54]} {[%emt 00:20:26]} Be6
{[%clk 00:25:22]} {[%emt 00:19:34]} 14. Nc4 {[%clk 01:05:29]} {[%emt 00:00:55]}
Qd8 {[%clk 00:23:06]} {[%emt 00:02:46]} 15. Bxe6 {[%clk 00:55:59]} {[%emt
00:10:01]} fxe6 {[%clk 00:23:23]} {[%emt 00:00:14]} 16. Qg4 {[%clk 00:56:26]}
{[%emt 00:00:03]} Qd7 {[%clk 00:18:42]} {[%emt 00:05:10]} 17. Nxd6 {[%clk
00:56:14]} {[%emt 00:00:42]} Nc6 {[%clk 00:16:58]} {[%emt 00:02:14]} 18. b5
{[%clk 00:55:32]} {[%emt 00:01:11]} Ne5 {[%clk 00:15:39]} {[%emt 00:01:48]} 19.
Bxe5 {[%clk 00:55:27]} {[%emt 00:00:35]} Bxe5 {[%clk 00:16:01]} {[%emt
00:00:09]} 20. Nc4 {[%clk 00:52:57]} {[%emt 00:03:00]} Bc7 {[%clk 00:14:49]}
{[%emt 00:01:41]} 21. a4 {[%clk 00:51:03]} {[%emt 00:02:26]} Rae8 {[%clk
00:13:31]} {[%emt 00:01:47]} 22. h4 {[%clk 00:47:46]} {[%emt 00:03:47]} Qg7
{[%clk 00:12:29]} {[%emt 00:01:32]} 23. Rxf8+ {[%clk 00:42:37]} Qxf8 {[%clk
00:12:47]} {[%emt 00:05:51]} 24. e5 {[%clk 00:41:52]} {[%emt 00:01:15]} Qf5
{[%clk 00:09:45]} {[%emt 00:03:33]} 25. Qxd4 {[%clk 00:41:44]} {[%emt
00:00:38]} Rd8 {[%clk 00:08:43]} {[%emt 00:01:32]} 26. Qf2 {[%clk 00:40:35]}
{[%emt 00:01:38]} 1-0